Cogmind - Beta 13 @@@ ROGUE MODE // 2024.08.05 @ 13:25:33 Player: jimmyl Result: Destroyed by CQ-0EN(R) with Subdweller Laser Performance ------------- Evolutions (0) 0 Regions Visited (2) 400 Robots Destroyed (23) 115 Value Destroyed (653) 653 Prototype IDs (4) 80 Alien Tech Used (0) 0 Bonus (0) 0 TOTAL SCORE: 1248 Bonus ------- None Cogmind --------- Core Integrity 0/250 Matter 300/300 Energy 200/200 System Corruption 0% Temperature Cool (6) Movement Rolling (100) Location -10/Subcaves Parts ------- > --- POWER (1) -------- Subdweller Power Source > --- PROPULSION (2) --- Compact Wheel Compact Wheel > --- UTILITY (2) ------ Medium Storage Unit > --- WEAPON (2) ------- Ripper > --- INVENTORY (10) --- Scrap Shield Hacking Suite EM Pulse Gun Light Cannon Peak State ------------ > --- POWER ------------ Subdweller Power Source > --- PROPULSION ------- Compact Wheel Compact Wheel > --- UTILITY ---------- Improved Heat Sink Medium Storage Unit > --- WEAPON ----------- EM Pulse Gun Ripper > --- INVENTORY -------- Subdweller Power Source Scrap Shield Hacking Suite EM Pulse Gun Light Cannon [Rating: 14] Favorites ----------- Power Light Ion Engine Engine Light Ion Engine Propulsion Light Treads Treads Light Treads Leg Aluminum Leg Wheel Compact Wheel Utility Improved Heat Sink Device Improved Heat Sink Storage Medium Storage Unit Protection Light Armor Plating Weapon Small Laser Energy Gun Small Laser Ballistic Gun Assault Rifle Launcher Grenade Launcher Slashing Weapon Ripper Build | -11 -10 -10 ------- Run | Yrd Mat Sub Slots Evolved . | . . . Power . | . . . Propulsion . | . . . Utility . | . . . Weapon . | . . . Parts Attached 19 | . 13 6 Power 3 | . 1 2 Engine 3 | . 1 2 Core . | . . . Reactor . | . . . Propulsion 4 | . 2 2 Treads 2 | . 2 . Leg . | . . . Wheel 2 | . . 2 Hover . | . . . Flight . | . . . Utility 4 | . 4 . Device 1 | . 1 . Storage 1 | . 1 . Processor . | . . . Hackware . | . . . Protection 2 | . 2 . Artifact . | . . . Weapon 8 | . 6 2 Energy Gun 4 | . 3 1 Energy Cannon . | . . . Ballistic Gun 1 | . 1 . Ballistic Cannon . | . . . Launcher 2 | . 2 . Special Weapon . | . . . Impact Weapon . | . . . Slashing Weapon 1 | . . 1 Piercing Weapon . | . . . Special Melee Weapon . | . . . Unidentified Prototypes . | . . . Parts Lost 9 | . 5 4 Power 2 | . 2 . Propulsion 2 | . 1 1 Utility 2 | . 1 1 Weapon 3 | . 1 2 Highest Loss Streak 4 | . 4 2 To Critical Strikes . | . . . Average Slot Usage (%) 94 | . 92 97 Engine 9 | . 7 12 Treads 10 | . 14 2 Leg 8 | . 13 . Wheel 8 | . . 24 Device 9 | . 7 14 Storage 14 | . 14 14 Protection 3 | . 6 . Energy Gun 24 | . 25 23 Slashing Weapon 1 | . . 4 Naked Turns . | . . . Heaviest Build 21 | 11 16 21 Greatest Support 40 | 20 40 40 Greatest Overweight (x) . | . . . Average Overweight (x) . | . . . Largest Inventory Capacity 10 | . 10 10 Average Capacity 9 | . 8 10 Most Carried 8 | . 8 6 Average Carried 5 | . 6 5 Final Capacity 10 | 8 10 10 Final Carried 6 | 6 6 5 Class Distribution -------------------- 100% | Mutant Dominant Class ---------------- Mutant | -10/Materials Mutant | -10/Subcaves Resources | -11 -10 -10 ----------- Run | Yrd Mat Sub Matter Collected 491 | 200 231 60 Remotely . | . . . Salvage Created 579 | . 351 228 Parts 57 | . 36 21 Haulers Intercepted . | . . . Recyclers Shooed . | . . . Parts Field Recycled . | . . . Retrieved Matter . | . . . Parts Self-Destructed 23 | . . 23 Prevented . | . . . Kills | -11 -10 -10 ------- Run | Yrd Mat Sub Combat Hostiles Destroyed 15 | . 10 5 Melee 1 | . . 1 Guns 11 | . 7 4 AOE 3 | . 3 . Classes Destroyed 9 | . 6 3 Worker 2 | . 2 . Builder 2 | . 2 . Operator 1 | . 1 . Watcher 3 | . 3 . Swarmer 2 | . 2 . Grunt 9 | . 8 1 Sentry 1 | . . 1 Artisan 1 | . . 1 Subdweller 3 | . . 3 Best Kill Streak 6 | . 6 2 Combat Bots Only 3 | . 3 2 Max Kills in Single Turn 2 | . 2 1 Gunslinging . | . . . Exploded 1 | . 1 . Melee 1 | . . 1 Uniques/NPCs Destroyed . | . . . Combat | -11 -10 -10 -------- Run | Yrd Mat Sub Hostile Shots Fired 111 | . 71 40 Missed 31 | . 20 11 Damage Taken 1346 | . 920 426 Core 258 | . 155 103 Absorbed by Shields . | . . . Core Remaining (%) 100 | 100 . . Volleys Fired 54 | . 45 9 Largest 2 | . 2 2 Hottest 90 | . 90 90 Shots Fired 90 | . 72 18 Gun 78 | . 60 18 Cannon . | . . . Launcher 12 | . 12 . Special . | . . . Kinetic 5 | . 5 . Thermal 70 | . 55 15 Explosive 12 | . 12 . Electromagnetic 3 | . . 3 Robot Hit Streak 30 | . 13 30 Robot Miss Streak 5 | . 5 . Penetration Max . | . . . Secondary Targets 1 | . . 1 Max Gunslinging Chain 1 | . . 1 Shots Hit Robots 71 | . 44 27 Core Hits 43 | . 33 10 Critical Kills . | . . . Critical Parts Destroyed . | . . . Critical Strikes 3 | . 2 1 Burn 3 | . 2 1 Melee Attacks 20 | . . 20 Impact . | . . . Slashing 20 | . . 20 Piercing . | . . . Sneak Attacks 1 | . . 1 Combat Hostiles . | . . . Follow-up Attacks . | . . . Damage Inflicted 1967 | . 1357 610 Guns 683 | . 481 202 Cannons . | . . . Explosions 873 | . 873 . Melee 408 | . . 408 Ramming 3 | . 3 . Kinetic 65 | . 65 . Thermal 583 | . 416 167 Explosive 873 | . 873 . Electromagnetic 35 | . . 35 Impact . | . . . Slashing 408 | . . 408 Piercing . | . . . Highest Corruption . | . . . Average Corruption . | . . . Corruption Purged . | . . . Corruption Blocked . | . . . Overload Shots . | . . . Overflow Damage 112 | . 63 49 Projectiles . | . . . Explosions 63 | . 63 . Melee 49 | . . 49 Knockbacks . | . . . Impact . | . . . Kinetic . | . . . Secondary . | . . . Self-Inflicted Damage 118 | . 118 . Shots 5 | . 5 . Rammed . | . . . Targets Rammed 1 | . 1 . Kicked 1 | . 1 . Crushed . | . . . Highest Temperature 258 | . 258 . Average Temperature 79 | . 79 . Received Heat Transfer 465 | . 348 117 Effects 2 | . 2 . Interference 2 | . 2 . Siege Activations . | . . . Robots Corrupted . | . . . Combat Hostiles . | . . . Parts Fried . | . . . Impact Corruptions . | . . . Robots Melted . | . . . Combat Hostiles . | . . . Parts Melted 4 | . 4 . Heat Transferred 1760 | . 1264 496 Parts Sabotaged . | . . . Parts Stolen . | . . . Parts Stripped . | . . . Power Chain Reactions . | . . . Alert | -11 -10 -10 ------- Run | Yrd Mat Sub Peak Influence 282 | . 282 . Initial . | . . . Average 136 | . 136 . Maximum Alert Level 1 | . 1 . Low Security (%) 71 | . 71 . Level 1 28 | . 28 . Level 2 . | . . . Level 3 . | . . . Level 4 . | . . . Level 5 . | . . . High Security . | . . . Max Security . | . . . Squads Dispatched 2 | . 2 . Investigation . | . . . Extermination . | . . . Reinforcement 2 | . 2 . Assault . | . . . Garrison . | . . . Intercept . | . . . Searches Triggered . | . . . Construction Impeded . | . . . Haulers Reinforced . | . . . Active Scanning Responses . | . . . Cargo Convoy Interrupts . | . . . Stealth | -11 -10 -10 --------- Run | Yrd Mat Sub Distress Signals 2 | . 2 . Communications Jammed . | . . . Distress Signals . | . . . Times Spotted 82 | . 19 63 Peak Tracking Total 5 | . 5 2 Tactical Retreats 3 | . . 3 Traps | -11 -10 -10 ------- Run | Yrd Mat Sub Traps Triggered 3 | . 3 . Indirectly . | . . . Trap Hack Attempts . | . . . Triggered . | . . . Disarmed . | . . . Reprogrammed . | . . . Reused . | . . . Traps Extracted . | . . . Installed . | . . . Triggered . | . . . Machines | -11 -10 -10 ---------- Run | Yrd Mat Sub Machines Disabled 6 | . 6 . Max in Single Turn 2 | . 2 . Machines Repaired . | . . . Machines Dismantled . | . . . Machines Sabotaged . | . . . Overloaded Fab Kills . | . . . Hacking | -11 -10 -10 --------- Run | Yrd Mat Sub Machines Accessed 6 | . 5 1 Terminals 5 | . 5 . Fabricators . | . . . Repair Stations . | . . . Recycling Units . | . . . Scanalyzers . | . . . Garrison Access . | . . . Total Hacks 14 | . 13 1 Successful 9 | . 8 1 Failed 5 | . 5 . Catastrophic 1 | . 1 . Database Lockouts . | . . . Manual 1 | . . 1 Terminals 13 | . 13 . Fabricators . | . . . Repair Stations . | . . . Recycling Units . | . . . Scanalyzers . | . . . Garrison Access . | . . . Terminal Hacks 9 | . 8 1 Record 1 | . . 1 Prototype ID Bank 2 | . 2 . Branch Access Points 1 | . 1 . Emergency Access Points 1 | . 1 . Terminal Index 1 | . 1 . Hauler Manifests 1 | . 1 . Zone Layout 2 | . 2 . Fabricator Hacks . | . . . Repair Station Hacks . | . . . Recycling Unit Hacks . | . . . Scanalyzer . | . . . Garrison Access Hacks . | . . . Unauthorized Hacks . | . . . Terminals . | . . . Fabricators . | . . . Repair Stations . | . . . Recycling Units . | . . . Scanalyzers . | . . . Garrison Access . | . . . Data Cores Recovered 1 | . 1 . Used . | . . . Hacking Detections 4 | . 4 . Full Trace Events . | . . . Feedback Events . | . . . Feedback Blocked . | . . . Robot Schematics Acquired . | . . . Robots Built . | . . . Authchips . | . . . Time . | . . . Total Robot Build Rating . | . . . Part Schematics Acquired . | . . . Parts Built . | . . . Authchips . | . . . Time . | . . . Total Part Build Rating . | . . . Parts Repaired . | . . . Time . | . . . Parts Recycled . | . . . Recycled Matter . | . . . Retrieved Matter . | . . . Retrieved Components . | . . . Parts Scanalyzed . | . . . Part Schematics Acquired . | . . . Parts Damaged . | . . . Bothacking | -11 -10 -10 ------------ Run | Yrd Mat Sub Used RIF Installer . | . . . Robots Hacked . | . . . Non-combat . | . . . Combat . | . . . Robot Hacks Applied . | . . . Relay Couplers Released . | . . . Fabnet Peak Effective % . | . . . Robots Rewired . | . . . Allies Hacked . | . . . Hacks Repelled . | . . . Allies | -11 -10 -10 -------- Run | Yrd Mat Sub Total Allies . | . . . Largest Group . | . . . Highest-Rated Group . | . . . Highest-Rated Ally . | . . . Total Orders . | . . . Ally Attacks . | . . . Total Damage . | . . . Kills . | . . . Allies Corrupted . | . . . Allies Melted . | . . . Intel | -11 -10 -10 ------- Run | Yrd Mat Sub Robot Analysis Total . | . . . Derelict Logs Recovered 1 | . . 1 Drone Launches . | . . . Drone Recoveries . | . . . Exploration | -11 -10 -10 ------------- Run | Yrd Mat Sub Turns Passed 1907 | . 1209 698 Spaces Moved 1221 | 1 674 546 Core . | . . . Treads 317 | . 280 37 Legs 395 | 1 394 . Wheels 509 | . . 509 Hover . | . . . Flight . | . . . Fastest Speed 100 | 120 120 100 Average Speed 122 | 120 136 104 Slowest Speed 160 | 120 160 160 Overloaded Moves . | . . . Propulsion Burnouts . | . . . Robots Hopped . | . . . Cave-ins Triggered . | . . . Exploration Rate (%) 44 | 2 94 36 Regions Visited 2 Branch Regions 1 Pre-discovered Areas 1 | . . 1 Known Exits Taken . | . . . Unknown Exits Taken 2 | 1 1 . Scrap Searched 1 | . . 1 Spaces Dug . | . . . Terrain Destroyed 33 | . 33 . Melee . | . . . Projectile . | . . . AOE 33 | . 33 . Terrain Rammed . | . . . Walls Destroyed . | . . . Machines Disabled . | . . . Actions | -11 -10 -10 --------- Run | Yrd Mat Sub Total 1516 | . 888 628 Wait 189 | . 147 42 Move 1219 | . 673 546 Hop . | . . . Pick Up 7 | . 5 2 Fast Attach 4 | . 3 1 Attach 9 | . 5 4 Detach . | . . . Swap 6 | . 5 1 Drop 7 | . 4 3 Fire 54 | . 45 9 Melee 20 | . . 20 Ram . | . . . Kick 1 | . 1 . Crush . | . . . Escape Stasis . | . . . Rewire . | . . . Trap . | . . . Miscellaneous . | . . . Route ------- -11/Scrapyard -10/Materials (discovered 4 exits: [*Mat x2] / *Min / *Sub) -10/Subcaves (discovered 2 exits: [*Mat] / [*Rec]) History --------- Turn | Location | Event 1 | -11/Scrapyard | Discovered new exit (range 0) 1 | -11/Scrapyard | Entered Materials 50 | -10/Materials | Discovered new exit (range 13) 107 | -10/Materials | Identified exit to Mines 261 | -10/Materials | Discovered new exit (range 15) 316 | -10/Materials | Build established: Mutant 517 | -10/Materials | Discovered new exit (range 14) 579 | -10/Materials | Core integrity fell below 50% 606 | -10/Materials | Lost 4 parts (1p1n1u1w) 1195 | -10/Materials | Discovered new exit (range 9) 1210 | -10/Materials | Entered Subcaves 1409 | -10/Subcaves | Visited Clippyterm 1506 | -10/Subcaves | Learned location of Zion (-6) 1506 | -10/Subcaves | Met a Zionite searching for "candidates" 1666 | -10/Subcaves | Shifting Twisted Machinery released Ripper 1668 | -10/Subcaves | Shifting Twisted Machinery released Riot Gun 1691 | -10/Subcaves | Discovered new exit (range 12) 1841 | -10/Subcaves | Discovered new exit (range 6) 1874 | -10/Subcaves | Disturbed a concealed Subdweller 1887 | -10/Subcaves | Core integrity fell below 20% 1908 | -10/Subcaves | Destroyed by CQ-0EN(R) with Subdweller Laser Last Messages --------------- 01731_ K0-SDV(R) destroyed. 01734_ Acquired 10 matter. 01737_ Dropped Broken Sub. Power Source. 01758_ TT-AKV(u) tweaks Twisted Machinery. 01764_ Sneak attack on TT-AKV(u). 01764_ Destroyed Wheel. 01767_ TT-AKV(u) cries out in pain. 01767_ TT-AKV(u) destroyed. 01769_ Acquired 10 matter. 01802_ Subatomizers dissect the Sub. Monowheel. 01841_ EXIT=FOUND 01867_ Searching scrap... 01867_ Found Sub. Power Source. 01867_ Found 25 Matter. 01874_ CQ-0EN(R) angrily emerges from the Twisted Machinery. 01893_ CQ-0EN(R) affixes Scrap Shield Fragment to Scrap Shield. 01898_ EM Pulse Gun destroyed. 01900_ Imp. Heat Sink destroyed. Map ----- +----------------------------------------------------+ | ??# # ###### ##?## #???????????????? | | ??# ######????# #???# # # ##???????????????? | | #### ##????#### ##??###### #????????????????? | | "#?# ##???# ###? #?# ##???????????????? | | ""## ##??# ## ### #???????????????? | | """ ##?# ## ## #???????????????? | | = #### ## ## #???????????????? | | &&* #?# ## ## #???????????????? | | !&%& #?## ##??????????????? | | [## #??# ##?????????????? | | " ### " ##??# ### #?????????????? | | ""##?## ""##???## "##?## ### #?????????????? | | ""????# " #?###?# ""#??##??## ##?????????????? | | ""???## " ### #### "#???????# ##??????????????? | | " # ## "" ## "##??###### ##???????????????? | | "" ## "#"### ##????????????????? | | "" % """ #?????????????????? | | # ### " " * #?????????????????? | | ##??## "" ## ### #### ##?????????????????? | | # #?????## ""####?###??## #??????????????????? | | ##???????## ##??????????## ###????????????????? | | ??????????######??????####### ##???????????????? | | ??????????????????????#" ## ##??????????????? | | ??????????????????????# %### < #??????????????? | | ??????????????????????#*##<#< #??????????????? | | ??????????????????????# #@ #??????????????? | | ??????????????????????#